Cogmind - Beta 17 @@@ ROGUE MODE // 2026.07.25 @ 21:43:56 Player: Suffixing Result: Destroyed by YI-UF0 with YI-UF0's Doublenader Performance ------------- Evolutions (0) 0 Regions Visited (2) 400 Robots Destroyed (21) 105 Value Destroyed (511) 511 Prototype IDs (0) 0 Alien Tech Used (0) 0 Bonus (0) 0 TOTAL SCORE: 1016 Bonus ------- None Cogmind --------- Core Integrity 0/250 Matter 300/300 Energy 264/265 System Corruption 3% Temperature Cool (0) Movement Rolling (200) Ox8 Location -10/Mines Parts ------- > --- POWER (1) -------- Improved Ion Engine > --- PROPULSION (2) --- Wheel > --- UTILITY (2) ------ Huge Storage Unit > --- WEAPON (2) ------- Shotgun > --- INVENTORY (25) --- Improved Ion Engine Improved Ion Engine Improved Hover Unit Improved Hover Unit Improved Hover Unit Improved Hover Unit Improved Heat Sink Large Storage Unit Hacking Suite Assault Rifle Assault Rifle Shotgun Shotgun Peak State ------------ > --- POWER ------------ Improved Ion Engine > --- PROPULSION ------- Light Treads Wheel > --- UTILITY ---------- Huge Storage Unit > --- WEAPON ----------- Shotgun Shotgun > --- INVENTORY -------- Improved Ion Engine Improved Ion Engine Improved Hover Unit Improved Hover Unit Improved Hover Unit Improved Hover Unit Improved Heat Sink Large Storage Unit Hacking Suite Assault Rifle Assault Rifle Shotgun Shotgun [Rating: 11] Favorites ----------- Power Improved Ion Engine Engine Improved Ion Engine Propulsion Light Treads Treads Light Treads Leg Aluminum Leg Wheel Wheel Utility Large Storage Unit Storage Large Storage Unit Weapon Shotgun Ballistic Gun Shotgun Impact Weapon Hammer Build | -11 -10 -10 ------- Run | Yrd Mat Min Slots Evolved . | . . . Power . | . . . Propulsion . | . . . Utility . | . . . Weapon . | . . . Parts Attached 22 | 3 17 2 Power 2 | . 2 . Engine 2 | . 2 . Core . | . . . Reactor . | . . . Propulsion 4 | 2 1 1 Treads 3 | 2 1 . Leg . | . . . Wheel 1 | . . 1 Hover . | . . . Flight . | . . . Utility 2 | . 1 1 Device . | . . . Storage 2 | . 1 1 Processor . | . . . Hackware . | . . . Protection . | . . . Artifact . | . . . Weapon 14 | 1 13 . Energy Gun . | . . . Energy Cannon . | . . . Ballistic Gun 13 | 1 12 . Ballistic Cannon . | . . . Launcher . | . . . Special Weapon . | . . . Impact Weapon 1 | . 1 . Slashing Weapon . | . . . Piercing Weapon . | . . . Special Melee Weapon . | . . . Unidentified Prototypes . | . . . Parts Lost 7 | . 5 2 Power 1 | . 1 . Propulsion 3 | . 2 1 Utility . | . . . Weapon 3 | . 2 1 Highest Loss Streak 5 | . 5 2 To Critical Strikes . | . . . Average Backups 12 | 6 11 13 Power 1 | 1 1 2 Propulsion 3 | 4 3 4 Utility 2 | . 2 3 Weapon 4 | 1 4 4 Tool/Special . | . . . Unused Backups 14 | . 4 10 Power 3 | . 1 2 Propulsion 4 | . . 4 Utility 4 | . 1 3 Weapon 3 | . 2 1 Tool/Special . | . . . Average Slot Usage (%) 78 | . 75 83 Engine 13 | . 13 14 Treads 17 | . 19 14 Wheel 4 | . . 12 Storage 14 | . 14 14 Ballistic Gun 27 | . 27 28 Peak Build Rating 11 | 6 10 11 Average Rating 9 | 6 8 10 On Entrance 7 | 6 6 10 Avg Prop Armor Cover (%) 11 | . . 11 Naked Turns . | . . . Heaviest Build 93 | 13 33 93 Greatest Support 40 | 40 40 20 Greatest Overweight (x) 9 | . 9 9 Average Overweight (x) 3 | . . 8 Largest Inventory Capacity 25 | 8 15 25 Average Capacity 18 | 8 14 24 Most Carried 15 | 6 15 15 Average Carried 12 | 4 12 13 Final Capacity 25 | 8 15 25 Final Carried 14 | 2 14 13 Class Distribution -------------------- 100% | Mutant Dominant Class ---------------- Mutant | -10/Materials Mutant | -10/Mines Resources | -11 -10 -10 ----------- Run | Yrd Mat Min Matter Collected 833 | 197 467 169 Remotely . | . . . Salvage Created 649 | . 474 175 Parts 47 | . 38 9 Haulers Intercepted 1 | . 1 . Recyclers Shooed 2 | . 1 1 Parts Field Recycled . | . . . Retrieved Matter . | . . . Parts Self-Destructed . | . . . Prevented . | . . . Parts Restored . | . . . Kills | -11 -10 -10 ------- Run | Yrd Mat Min Combat Hostiles Destroyed 17 | . 13 4 Guns 17 | . 13 4 Classes Destroyed 6 | . 6 . Worker 2 | . 2 . Hauler 1 | . 1 . Operator 1 | . 1 . Swarmer 6 | . 6 . Grunt 8 | . 4 4 Subdweller 3 | . 3 . Best Kill Streak 6 | . 6 1 Combat Bots Only 4 | . 4 1 Max Kills in Single Turn 2 | . 2 1 Gunslinging 1 | . 1 . Exploded . | . . . Melee . | . . . Uniques/NPCs Destroyed . | . . . Combat | -11 -10 -10 -------- Run | Yrd Mat Min Hostile Shots Fired 103 | . 75 28 Missed 28 | . 23 5 Hits 75 | . 52 23 Projectile 75 | . 52 23 AOE 15 | . 6 9 Damage Taken 1395 | . 909 486 Core 251 | . 121 130 Absorbed by Shields . | . . . Core Remaining (%) 100 | 100 . . Volleys Fired 63 | . 51 12 Largest 2 | . 2 2 Hottest 46 | . 40 46 Shots Fired 127 | . 102 25 Gun 127 | . 102 25 Cannon . | . . . Launcher . | . . . Special . | . . . Kinetic 127 | . 102 25 Thermal . | . . . Explosive . | . . . Electromagnetic . | . . . Robot Hit Streak 14 | . 14 5 Robot Miss Streak 4 | . 4 4 Penetration Max . | . . . Secondary Targets 2 | . 2 . Max Gunslinging Chain 1 | . 1 . Shots Hit Robots 82 | . 65 17 Core Hits 40 | . 29 11 Critical Kills . | . . . Critical Parts Destroyed 1 | . 1 . Critical Strikes 1 | . 1 . Destroy 1 | . 1 . Melee Attacks 1 | . 1 . Impact 1 | . 1 . Slashing . | . . . Piercing . | . . . Sneak Attacks . | . . . Combat Hostiles . | . . . Follow-up Attacks . | . . . Damage Inflicted 1068 | . 824 244 Guns 1059 | . 820 239 Cannons . | . . . Explosions . | . . . Melee . | . . . Ramming 9 | . 4 5 Kinetic 1059 | . 820 239 Thermal . | . . . Explosive . | . . . Electromagnetic . | . . . Impact . | . . . Slashing . | . . . Piercing . | . . . Highest Corruption 3 | . 3 3 Average Corruption 2 | . 1 3 Corruption Purged . | . . . Corruption Blocked . | . . . Effects 21 | . 5 16 Message Errors 6 | . 3 3 Matter Fused 4 | . 1 3 Heat Flow Errors 2 | . . 2 Energy Discharges 3 | . 1 2 Data Loss (minor) 3 | . . 3 Data Loss (major) 1 | . . 1 Misfires 1 | . . 1 Alerts 1 | . . 1 Overload Shots . | . . . Overflow Damage . | . . . Projectiles . | . . . Explosions . | . . . Melee . | . . . Knockbacks . | . . . Impact . | . . . Kinetic . | . . . Secondary . | . . . Self-Inflicted Damage . | . . . Shots . | . . . Rammed 2 | . 1 1 Targets Rammed 2 | . 1 1 Kicked . | . . . Crushed . | . . . Highest Temperature 280 | . 12 280 Average Temperature 56 | . 5 81 Received Heat Transfer 249 | . 135 114 Effects 2 | . . 2 Interference 2 | . . 2 Siege Activations . | . . . Martial Activations . | . . . Shielding Activations . | . . . Robots Disrupted . | . . . Combat Hostiles . | . . . Robots Corrupted . | . . . Combat Hostiles . | . . . Parts Fried . | . . . Impact Corruptions . | . . . Robots Melted . | . . . Combat Hostiles . | . . . Parts Melted 2 | . 2 . Heat Transferred . | . . . Parts Sabotaged . | . . . Parts Stolen . | . . . Parts Stripped . | . . . Power Chain Reactions . | . . . Alert | -11 -10 -10 ------- Run | Yrd Mat Min Maximum Alert Level . | . . . Low Security (%) 100 | 100 100 100 Level 1 . | . . . Level 2 . | . . . Level 3 . | . . . Level 4 . | . . . Level 5 . | . . . High Security . | . . . Max Security . | . . . Peak Influence 150 | . 150 45 Initial . | . . . Average 17 | . 23 5 Influence Increases 408 | . 278 130 Destroy 0b10 Robot/C 280 | . 200 80 Destroy 0b10 Robot/NC 20 | . 20 . Destroy Leader 62 | . 42 20 Destroy Structure 1 | . 1 . Lose Combat Pursuer 45 | . 15 30 Influence Decreases 408 | . 278 130 Time Decay 358 | . 228 130 Lost Part 50 | . 50 . Squads Dispatched 2 | . 2 . Investigation 1 | . 1 . Extermination . | . . . Reinforcement 1 | . 1 . Assault . | . . . Garrison . | . . . Intercept . | . . . Searches Triggered . | . . . Construction Impeded . | . . . Haulers Reinforced . | . . . Active Scanning Responses . | . . . Cargo Convoy Interrupts . | . . . Stealth | -11 -10 -10 --------- Run | Yrd Mat Min Distress Signals 3 | . 3 . Communications Jammed . | . . . Distress Signals . | . . . Times Spotted 34 | . 27 7 Peak Tracking Total 5 | . 5 2 Tactical Retreats 4 | . 2 2 Traps | -11 -10 -10 ------- Run | Yrd Mat Min Traps Triggered 4 | . 4 . Indirectly . | . . . Trap Hack Attempts . | . . . Triggered . | . . . Disarmed . | . . . Reprogrammed . | . . . Reused . | . . . Traps Extracted . | . . . Installed . | . . . Triggered . | . . . Machines | -11 -10 -10 ---------- Run | Yrd Mat Min Machines Disabled . | . . . Max in Single Turn . | . . . Machines Repaired . | . . . Machines Dismantled . | . . . Machines Sabotaged . | . . . Overloaded Fab Kills . | . . . Hacking | -11 -10 -10 --------- Run | Yrd Mat Min Machines Accessed 5 | . 5 . Terminals 5 | . 5 . Fabricators . | . . . Repair Stations . | . . . Recycling Units . | . . . Scanalyzers . | . . . Garrison Access . | . . . Total Hacks 9 | . 9 . Successful 4 | . 4 . Failed 5 | . 5 . Catastrophic 1 | . 1 . Database Lockouts . | . . . Manual 8 | . 8 . Terminals 9 | . 9 . Fabricators . | . . . Repair Stations . | . . . Recycling Units . | . . . Scanalyzers . | . . . Garrison Access . | . . . Terminal Hacks 1 | . 1 . Zone Layout 1 | . 1 . Fabricator Hacks . | . . . Repair Station Hacks . | . . . Recycling Unit Hacks . | . . . Scanalyzer . | . . . Garrison Access Hacks . | . . . Unauthorized Hacks 3 | . 3 . Terminals 3 | . 3 . Skim 3 | . 3 . Fabricators . | . . . Repair Stations . | . . . Recycling Units . | . . . Scanalyzers . | . . . Garrison Access . | . . . Data Cores Recovered 1 | . 1 . Used . | . . . Hacking Detections 2 | . 2 . Full Trace Events 1 | . 1 . Feedback Events . | . . . Feedback Blocked . | . . . Robot Schematics Acquired . | . . . Robots Built . | . . . Authchips . | . . . Time . | . . . Total Robot Build Rating . | . . . Part Schematics Acquired . | . . . Parts Built . | . . . Authchips . | . . . Time . | . . . Total Part Build Rating . | . . . Part Studies Acquired . | . . . Parts Repaired . | . . . Time . | . . . Parts Recycled . | . . . Recycled Matter . | . . . Retrieved Matter . | . . . Retrieved Components . | . . . Parts Scanalyzed . | . . . Part Schematics Acquired . | . . . Parts Damaged . | . . . Bothacking | -11 -10 -10 ------------ Run | Yrd Mat Min Used RIF Installer . | . . . Robots Hacked . | . . . Non-combat . | . . . Combat . | . . . Robot Hacks Applied . | . . . Relay Couplers Released . | . . . Fabnet Peak Effective % . | . . . Robots Rewired . | . . . Allies Hacked . | . . . Hacks Repelled . | . . . Allies | -11 -10 -10 -------- Run | Yrd Mat Min Total Allies . | . . . Largest Group . | . . . Highest-Rated Group . | . . . Highest-Rated Ally . | . . . Total Orders . | . . . Ally Attacks . | . . . Total Damage . | . . . Kills . | . . . Allies Corrupted . | . . . Allies Melted . | . . . Intel | -11 -10 -10 ------- Run | Yrd Mat Min Active Infowar (turns) . | . . . Robot Analysis Total . | . . . Derelict Logs Recovered 2 | . . 2 Drone Launches . | . . . Drone Recoveries . | . . . Exploration | -11 -10 -10 ------------- Run | Yrd Mat Min Turns Passed 2401 | 7 1529 865 Spaces Moved 980 | 1 634 345 Core 2 | . 2 . Treads 651 | 1 632 18 Legs . | . . . Wheels 327 | . . 327 Hover . | . . . Flight . | . . . Fastest Speed 160 | 160 160 200 Average Speed 212 | 160 207 222 Slowest Speed 500 | 160 500 480 Overloaded Moves . | . . . Propulsion Burnouts . | . . . Robots Hopped . | . . . Potential Cave-ins . | . . . Cave-ins Triggered . | . . . Exploration Rate (%) 52 | 2 64 90 Regions Visited 2 Branch Regions 1 Pre-discovered Areas 1 | . . 1 Known Exits Taken . | . . . Unknown Exits Taken 2 | 1 1 . Scrap Searched 1 | . . 1 Spaces Dug . | . . . Terrain Destroyed . | . . . Melee . | . . . Projectile . | . . . AOE . | . . . Terrain Rammed . | . . . Walls Destroyed . | . . . Machines Disabled . | . . . Actions | -11 -10 -10 --------- Run | Yrd Mat Min Total 1174 | 7 751 416 Wait 56 | . 2 54 Move 978 | . 633 345 Hop . | . . . Pick Up 30 | . 29 1 Fast Attach 3 | . 3 . Attach 7 | . 6 1 Detach . | . . . Swap 17 | 3 13 1 Drop 17 | 4 12 1 Fire 63 | . 51 12 Melee 1 | . 1 . Ram . | . . . Kick . | . . . Crush 2 | . 1 1 Escape Stasis . | . . . Rewire . | . . . Trap . | . . . Miscellaneous . | . . . Route ------- -11/Scrapyard -10/Materials (discovered 4 exits: [*Mat] / [*Min x2] / [*Sub]) -10/Mines (discovered 3 exits: [*Mat x2] / [*Sub]) History --------- Turn | Location | Event 8 | -11/Scrapyard | Discovered new exit (range 0) 8 | -11/Scrapyard | Entered Materials 274 | -10/Materials | Discovered new exit (range 14) 321 | -10/Materials | Build established: Mutant 367 | -10/Materials | Discovered new exit (range 7) 508 | -10/Materials | Derelicts attacked the area 637 | -10/Materials | Lost 5 parts (1p2n2w) 660 | -10/Materials | Discovered new exit (range 14) 1511 | -10/Materials | Discovered new exit (range 9) 1537 | -10/Materials | Entered Mines 1605 | -10/Mines | Discovered new exit (range 7) 1682 | -10/Mines | Core integrity fell below 50% 1822 | -10/Mines | Discovered new exit (range 7) 2022 | -10/Mines | Learned Materials garrison access intel 2060 | -10/Mines | Learned location of Storage (-8) 2393 | -10/Mines | Discovered new exit (range 9) 2397 | -10/Mines | Core integrity fell below 20% 2402 | -10/Mines | Destroyed by YI-UF0 with YI-UF0's Doublenader Last Messages --------------- couldn't effectively use their advantage in numbers, and I suggest you do the same." 02062_ OC-PI0(g) slips back into the shadows. 02070_ System corrupted: FCS attempts to trigger Shotgun. 02070_ System corrupted: Shotgun misfires. 02138_ System corrupted: Component data lost. 02195_ G-34 Mercenary destroyed. 02198_ Acquired 36 matter. 02215_ MAHSW8PLYKCMY BJG|K7KAV P|, 02244_ TIF/9C4D 02331_ Acquired 18 matter. 02387_ The unstable cave ceiling collapses. 02393_ EXIT=FOUND 02399_ K-01 Serf collects debris. 02400_ The unstable cave ceiling collapses. 02400_ Shotgun destroyed. 02400_ Lgt. Treads destroyed. Map ----- +----------------------------------------------------+ | ##?????????# #?# ### ####????????????? | | ###???????# #??# ## ####?????????? | | #???#####[#### #?# ##????????? | | #??# = = #??# ##???????? | | #??# ######## #### #???????? | | # ##??# #??????# ## ##### ##??????? | | ? #???# #??????# ##???## #####??? | | ? #???# #??????# #????## ##?? | | ? #???# #??????## #????# #?? | | ? ???# #???????## #????# #?? | | ? ?? #????????## ##????## #?? | | ?? ?? #?????????## ### ???##### #?? | | ??####?###??????????####### ????### #?? | | ?????????????????####?#??? ????## ##? | | ????????????????## # ??? ##???# #? | | ????????????????# ## #???# #? | | ????????????????# # #???## #? | | ????????????????# #????# #? | | ??????????????### #????## #? | | #?????????????# # | #?????# #? | | ##?????????### *<| #????## #? | | #????????## # # = #????## #? | | #??????? g # #?????# #? | | #??????????# # #??????# ##? | | #?????????????# #???????## #?? | | ???????????????# @ #????????## ##? | | ?????????????????# #??????### #? | | ?????????????????## #???#### ## | | ??????????????????### ##?### ## # | | ???????????????????# #??# # # | | ???????????????????## ###?# # | | ????????????????????# # ### ! ## # | | ????????????????????### =% ## | | ??????????????????????# ### ![ # | | ?????????????????????## ##?## k # # # | | ####?????????????????# ##?# "" ### # | | #??????????????# # # ### """ #####??## | | ####????????????????# # = # """ ##?????? | | ????????????????????#?# !%= #?????? | | ??????????????????????# ## #?????? | | ##?????????????????# # ###### ##?????? | | #?????????????????#### ######????####??????? | | #????????????????????####????????????????????? | | ##????????????????????????????????????????????? | | ##?????????????????????????????????????????????? | | #??????????????????????????????????????????????? | | ???????????????????????????????????????????????? | | ???????????????????????????????????????????????? | | ???????????????????????????????????????????????? | | ???????????????????????????????????????????????? | +----------------------------------------------------+ Best States ------------- Heat Dissipation 25 Energy Generation 12 Energy Capacity 265 Matter Stores 300 Matter Capacity 300 Sight Range 16 Terrain Scan Density 10 Evasion (%) 40 Recoil Reduction 2 Item Schematics ----------------- None Robot Schematics ------------------ None Fabricated ------------ Nothing Repaired ---------- Nothing Studied --------- None Alien Tech Used ----------------- None Achievements -------------- None Challenges ------------ None Game ------ Seed QuantumNeutrinoSaw Manual? 0 Play Time 00:11:04 Cumulative 64.8 hours Start 2026.07.25 @ 21:34:47 End 2026.07.25 @ 21:43:56 Sessions 1 Manual Loads 0 Difficulty Rogue Special Mode None Game No. 278 Rogue 233 Adventurer 45 Explorer 0 Win Type - Total 2 Types 2/0/0/0/0/0/0/0/0/0 Lore% 66 Gallery% 46 Achievement% 44 Wizard Run 0 Options --------- Layout 1 ASCII 0 Keyboard 0 Movement Numpad Keybinds 0 Fullscreen 1 Font 24/Smallcaps Map View 50x35 Zoom Use 0% Tactical HUD 1 Map Filters NONE Filters NONE Steam 1 RUN: b0e94e5c-abff-48bb-9a06-f8b1e1c870a6